[Event "Titled Tuesday Blitz October 25 Late 2022"]
[White "Zochowski, Kacper"]
[Black "Gonzalez, Francisco Silva"]
[WhiteFideId "1125494"]
[BlackFideId "1512285"]
[WhiteElo "2292"]
[BlackElo "2159"]
[Result "1/2-1/2"]
[Round "04"]
[TimeControl "180+1"]
[Date "2022.10.26"]
[WhiteClock "0:00:17"]
[BlackClock "0:00:18"]

1. Nf3 {[%clk 0:03:00]}  d5 {[%clk 0:02:57]} 2. c4 {[%clk 0:03:00]}  e6 {[%clk 0:02:56]} 3. g3 {[%clk 0:03:00]}  a6 {[%clk 0:02:55]} 4. Bg2 {[%clk 0:03:01]}  dxc4 {[%clk 0:02:55]} 5. a4 {[%clk 0:03:00]}  Nc6 {[%clk 0:02:55]} 6. O-O {[%clk 0:03:00]}  e5 {[%clk 0:02:55]} 7. Qc2 {[%clk 0:02:44]}  Be6 {[%clk 0:02:54]} 8. Na3 {[%clk 0:02:44]}  Bxa3 {[%clk 0:02:45]} 9. bxa3 {[%clk 0:02:45]}  f6 {[%clk 0:02:39]} 10. Rb1 {[%clk 0:02:44]}  Ra7 {[%clk 0:02:34]} 11. Rd1 {[%clk 0:02:29]}  Nge7 {[%clk 0:02:33]} 12. d3 {[%clk 0:02:30]}  cxd3 {[%clk 0:02:32]} 13. Rxd3 {[%clk 0:02:30]}  Qc8 {[%clk 0:02:32]} 14. Rc3 {[%clk 0:01:45]}  O-O {[%clk 0:02:28]} 15. Be3 {[%clk 0:01:45]}  Ra8 {[%clk 0:02:26]} 16. Bc5 {[%clk 0:01:45]}  Rf7 {[%clk 0:02:19]} 17. Nd2 {[%clk 0:01:45]}  Nd5 {[%clk 0:02:17]} 18. Rcb3 {[%clk 0:01:42]}  Na5 {[%clk 0:02:14]} 19. R3b2 {[%clk 0:01:40]}  Qd7 {[%clk 0:02:07]} 20. Bb4 {[%clk 0:01:12]}  Nc6 {[%clk 0:01:56]} 21. Ne4 {[%clk 0:01:13]}  Ndxb4 {[%clk 0:01:51]} 22. axb4 {[%clk 0:01:12]}  Nd4 {[%clk 0:01:49]} 23. Qd1 {[%clk 0:01:12]}  Rd8 {[%clk 0:01:47]} 24. Nc5 {[%clk 0:01:12]}  Nf3+ {[%clk 0:01:45]} 25. Bxf3 {[%clk 0:01:08]}  Qxd1+ {[%clk 0:01:45]} 26. Rxd1 {[%clk 0:01:09]}  Rxd1+ {[%clk 0:01:45]} 27. Kg2 {[%clk 0:01:10]}  Bd5 {[%clk 0:01:37]} 28. e4 {[%clk 0:01:08]}  Bxe4 {[%clk 0:01:27]} 29. Nxe4 {[%clk 0:01:07]}  Rd4 {[%clk 0:01:24]} 30. Nc5 {[%clk 0:01:06]}  b6 {[%clk 0:01:21]} 31. Nxa6 {[%clk 0:01:04]}  g6 {[%clk 0:01:20]} 32. Nb8 {[%clk 0:00:56]}  e4 {[%clk 0:01:15]} 33. Be2 {[%clk 0:00:56]}  Kg7 {[%clk 0:01:11]} 34. Nc6 {[%clk 0:00:56]}  Rd6 {[%clk 0:01:08]} 35. Bb5 {[%clk 0:00:56]}  f5 {[%clk 0:01:07]} 36. a5 {[%clk 0:00:56]}  bxa5 {[%clk 0:01:05]} 37. bxa5 {[%clk 0:00:57]}  Rf8 {[%clk 0:01:06]} 38. a6 {[%clk 0:00:56]}  Ra8 {[%clk 0:01:06]} 39. a7 {[%clk 0:00:56]}  Kf6 {[%clk 0:01:06]} 40. Ba4 {[%clk 0:00:50]}  Rxc6 {[%clk 0:00:59]} 41. Bxc6 {[%clk 0:00:51]}  Rxa7 {[%clk 0:01:00]} 42. Rb7 {[%clk 0:00:45]}  Rxb7 {[%clk 0:00:59]} 43. Bxb7 {[%clk 0:00:45]}  c5 {[%clk 0:01:00]} 44. Bd5 {[%clk 0:00:42]}  Ke5 {[%clk 0:00:59]} 45. Bg8 {[%clk 0:00:43]}  h6 {[%clk 0:00:59]} 46. Kf1 {[%clk 0:00:41]}  g5 {[%clk 0:00:59]} 47. Ke2 {[%clk 0:00:41]}  f4 {[%clk 0:00:59]} 48. g4 {[%clk 0:00:35]}  Kd4 {[%clk 0:00:58]} 49. Kd2 {[%clk 0:00:35]}  c4 {[%clk 0:00:42]} 50. Bh7 {[%clk 0:00:31]}  f3 {[%clk 0:00:38]} 51. Bf5 {[%clk 0:00:19]}  c3+ {[%clk 0:00:36]} 52. Kd1 {[%clk 0:00:20]}  e3 {[%clk 0:00:36]} 53. fxe3+ {[%clk 0:00:18]}  Kxe3 {[%clk 0:00:35]} 54. Ke1 {[%clk 0:00:19]}  Kf4 {[%clk 0:00:21]} 55. Kf2 {[%clk 0:00:09]}  h5 {[%clk 0:00:20]} 56. h3 {[%clk 0:00:10]}  hxg4 {[%clk 0:00:19]} 57. hxg4 {[%clk 0:00:11]}  c2 {[%clk 0:00:19]} 58. Bxc2 {[%clk 0:00:11]}  Kxg4 {[%clk 0:00:20]} 59. Bd1 {[%clk 0:00:12]}  Kf4 {[%clk 0:00:19]} 60. Bxf3 {[%clk 0:00:13]}  Kf5 {[%clk 0:00:19]} 61. Kg3 {[%clk 0:00:13]}  Ke5 {[%clk 0:00:19]} 62. Bg4 {[%clk 0:00:13]}  Kf6 {[%clk 0:00:19]} 63. Bf3 {[%clk 0:00:14]}  Kf5 {[%clk 0:00:18]} 64. Bg4+ {[%clk 0:00:15]}  Ke4 {[%clk 0:00:18]} 65. Bf3+ {[%clk 0:00:16]}  Kf5 {[%clk 0:00:18]} 66. Bg4+ {[%clk 0:00:16]}  Ke5 {[%clk 0:00:18]} 67. Bf3 {[%clk 0:00:17]}  Kf5 {[%clk 0:00:18]} 1/2-1/2


[Site "https://www.chess.com"]

[Event "Titled Tuesday Blitz October 25 Late 2022"]
[White "Adla, Diego"]
[Black "Karacsonyi, Gellert"]
[WhiteFideId "100072"]
[BlackFideId "764620"]
[WhiteElo "2377"]
[BlackElo "2308"]
[Result "1/2-1/2"]
[Round "05"]
[TimeControl "180+1"]
[Date "2022.10.26"]
[WhiteClock "0:00:50"]
[BlackClock "0:00:24"]

1. c4 {[%clk 0:03:00]}  c5 {[%clk 0:02:59]} 2. Nf3 {[%clk 0:02:59]}  Nc6 {[%clk 0:02:59]} 3. d4 {[%clk 0:02:57]}  cxd4 {[%clk 0:02:59]} 4. Nxd4 {[%clk 0:02:58]}  g6 {[%clk 0:02:59]} 5. e4 {[%clk 0:02:57]}  Nf6 {[%clk 0:03:00]} 6. Nc3 {[%clk 0:02:56]}  d6 {[%clk 0:03:00]} 7. Be2 {[%clk 0:02:55]}  Nxd4 {[%clk 0:03:00]} 8. Qxd4 {[%clk 0:02:54]}  Bg7 {[%clk 0:03:01]} 9. Be3 {[%clk 0:02:54]}  O-O {[%clk 0:03:01]} 10. Qd2 {[%clk 0:02:53]}  a5 {[%clk 0:03:01]} 11. O-O {[%clk 0:02:32]}  a4 {[%clk 0:03:01]} 12. Bd4 {[%clk 0:02:17]}  Qa5 {[%clk 0:03:00]} 13. Rfd1 {[%clk 0:02:02]}  Bd7 {[%clk 0:02:58]} 14. Rab1 {[%clk 0:01:58]}  Bc6 {[%clk 0:02:58]} 15. f3 {[%clk 0:01:56]}  Nd7 {[%clk 0:02:57]} 16. Bxg7 {[%clk 0:01:55]}  Kxg7 {[%clk 0:02:58]} 17. Qd4+ {[%clk 0:01:46]}  Kg8 {[%clk 0:02:58]} 18. Bf1 {[%clk 0:01:45]}  Qc5 {[%clk 0:02:51]} 19. Nd5 {[%clk 0:01:42]}  Bxd5 {[%clk 0:02:50]} 20. cxd5 {[%clk 0:01:41]}  Rfc8 {[%clk 0:02:44]} 21. Qxc5 {[%clk 0:01:40]}  Rxc5 {[%clk 0:02:44]} 22. Rd2 {[%clk 0:01:29]}  Rac8 {[%clk 0:02:43]} 23. Kf2 {[%clk 0:01:23]}  g5 {[%clk 0:02:24]} 24. g3 {[%clk 0:01:21]}  Nf6 {[%clk 0:02:15]} 25. Ke3 {[%clk 0:01:17]}  Kg7 {[%clk 0:02:10]} 26. a3 {[%clk 0:01:13]}  h6 {[%clk 0:02:04]} 27. Be2 {[%clk 0:01:11]}  Nd7 {[%clk 0:02:02]} 28. Rd4 {[%clk 0:01:08]}  b5 {[%clk 0:01:49]} 29. Rb4 {[%clk 0:01:08]}  Rb8 {[%clk 0:01:49]} 30. Kd2 {[%clk 0:01:08]}  f5 {[%clk 0:01:39]} 31. Rc1 {[%clk 0:01:08]}  fxe4 {[%clk 0:01:36]} 32. fxe4 {[%clk 0:01:08]}  Kf6 {[%clk 0:01:19]} 33. Rxc5 {[%clk 0:01:05]}  Nxc5 {[%clk 0:01:19]} 34. Rxb5 {[%clk 0:01:05]}  Nxe4+ {[%clk 0:01:09]} 35. Ke3 {[%clk 0:01:04]}  Rxb5 {[%clk 0:01:08]} 36. Bxb5 {[%clk 0:01:04]}  Nc5 {[%clk 0:01:09]} 37. Kd4 {[%clk 0:01:03]}  e5+ {[%clk 0:00:59]} 38. dxe6 {[%clk 0:01:03]}  Kxe6 {[%clk 0:01:00]} 39. Kc4 {[%clk 0:01:01]}  Ke5 {[%clk 0:00:58]} 40. Kb4 {[%clk 0:01:01]}  Ke4 {[%clk 0:00:50]} 41. Bxa4 {[%clk 0:01:01]}  Nxa4 {[%clk 0:00:47]} 42. Kxa4 {[%clk 0:01:01]}  d5 {[%clk 0:00:47]} 43. Kb3 {[%clk 0:00:56]}  Ke3 {[%clk 0:00:24]} 44. Kc2 {[%clk 0:00:55]}  Ke2 {[%clk 0:00:25]} 45. Kc3 {[%clk 0:00:55]}  Ke3 {[%clk 0:00:25]} 46. Kc2 {[%clk 0:00:50]}  Ke2 {[%clk 0:00:23]} 47. Kc3 {[%clk 0:00:50]}  Ke3 {[%clk 0:00:24]} 48. Kc2 {[%clk 0:00:50]} 1/2-1/2


[Site "https://www.chess.com"]

[Event "Titled Tuesday Blitz October 25 Late 2022"]
[White "Aldokhin, Ivan"]
[Black "Baches Garcia, Guillermo"]
[WhiteFideId "24115720"]
[BlackFideId "2209764"]
[WhiteElo "2313"]
[BlackElo "2439"]
[Result "1/2-1/2"]
[Round "05"]
[TimeControl "180+1"]
[Date "2022.10.26"]
[WhiteClock "0:00:04"]
[BlackClock "0:00:07"]

1. e4 {[%clk 0:02:54]}  c5 {[%clk 0:03:00]} 2. Nf3 {[%clk 0:02:55]}  d6 {[%clk 0:03:00]} 3. d4 {[%clk 0:02:55]}  cxd4 {[%clk 0:03:01]} 4. Nxd4 {[%clk 0:02:56]}  Nf6 {[%clk 0:03:02]} 5. Nc3 {[%clk 0:02:56]}  Nc6 {[%clk 0:03:02]} 6. Bc4 {[%clk 0:02:56]}  Bd7 {[%clk 0:03:02]} 7. Bb3 {[%clk 0:02:56]}  g6 {[%clk 0:03:01]} 8. Be3 {[%clk 0:02:43]}  Ng4 {[%clk 0:03:01]} 9. Nxc6 {[%clk 0:02:34]}  bxc6 {[%clk 0:03:00]} 10. Bg5 {[%clk 0:02:21]}  Bg7 {[%clk 0:02:53]} 11. h3 {[%clk 0:02:20]}  Nf6 {[%clk 0:02:45]} 12. O-O {[%clk 0:02:15]}  O-O {[%clk 0:02:44]} 13. f4 {[%clk 0:02:14]}  Qc7 {[%clk 0:01:59]} 14. Qe1 {[%clk 0:01:59]}  Be6 {[%clk 0:01:50]} 15. Bxe6 {[%clk 0:01:37]}  fxe6 {[%clk 0:01:51]} 16. e5 {[%clk 0:01:36]}  dxe5 {[%clk 0:01:44]} 17. Qh4 {[%clk 0:00:52]}  Qb6+ {[%clk 0:01:13]} 18. Kh1 {[%clk 0:00:49]}  Qxb2 {[%clk 0:01:13]} 19. Ne2 {[%clk 0:00:29]}  Qxc2 {[%clk 0:00:58]} 20. Ng3 {[%clk 0:00:22]}  e4 {[%clk 0:00:54]} 21. Rac1 {[%clk 0:00:19]}  Qxa2 {[%clk 0:00:49]} 22. Rce1 {[%clk 0:00:11]}  Qd5 {[%clk 0:00:44]} 23. Bxf6 {[%clk 0:00:09]}  exf6 {[%clk 0:00:34]} 24. Nxe4 {[%clk 0:00:09]}  a5 {[%clk 0:00:30]} 25. Nc3 {[%clk 0:00:04]}  Qc4 {[%clk 0:00:28]} 26. Ne4 {[%clk 0:00:03]}  a4 {[%clk 0:00:25]} 27. f5 {[%clk 0:00:04]}  Qd5 {[%clk 0:00:14]} 28. fxg6 {[%clk 0:00:04]}  hxg6 {[%clk 0:00:14]} 29. Nxf6+ {[%clk 0:00:04]}  Bxf6 {[%clk 0:00:12]} 30. Rxf6 {[%clk 0:00:05]}  Rxf6 {[%clk 0:00:12]} 31. Qxf6 {[%clk 0:00:05]}  Qf5 {[%clk 0:00:12]} 32. Qa1 {[%clk 0:00:03]}  a3 {[%clk 0:00:11]} 33. Rf1 {[%clk 0:00:04]}  Qe4 {[%clk 0:00:06]} 34. Re1 {[%clk 0:00:03]}  Qf5 {[%clk 0:00:03]} 35. Re2 {[%clk 0:00:01]}  a2 {[%clk 0:00:02]} 36. Rxa2 {[%clk 0:00:01]}  Rxa2 {[%clk 0:00:02]} 37. Qxa2 {[%clk 0:00:02]}  Qd5 {[%clk 0:00:03]} 38. Qa3 {[%clk 0:00:01]}  Kg7 {[%clk 0:00:03]} 39. Qc3+ {[%clk 0:00:01]}  Kg8 {[%clk 0:00:03]} 40. Qe1 {[%clk 0:00:02]}  Kg7 {[%clk 0:00:03]} 41. Qg3 {[%clk 0:00:02]}  c5 {[%clk 0:00:03]} 42. Qc7+ {[%clk 0:00:03]}  Kf6 {[%clk 0:00:04]} 43. Qh7 {[%clk 0:00:02]}  c4 {[%clk 0:00:04]} 44. Qh8+ {[%clk 0:00:03]}  Kf7 {[%clk 0:00:04]} 45. Qh7+ {[%clk 0:00:03]}  Kf6 {[%clk 0:00:05]} 46. Qh8+ {[%clk 0:00:03]}  Kf5 {[%clk 0:00:05]} 47. Qc8 {[%clk 0:00:04]}  Ke4 {[%clk 0:00:05]} 48. Qg8 {[%clk 0:00:03]}  Kd3 {[%clk 0:00:05]} 49. Qxg6+ {[%clk 0:00:03]}  Kd2 {[%clk 0:00:05]} 50. Qh6+ {[%clk 0:00:03]}  Kd3 {[%clk 0:00:05]} 51. Qc1 {[%clk 0:00:03]}  c3 {[%clk 0:00:05]} 52. Qd1+ {[%clk 0:00:03]}  Kc4 {[%clk 0:00:05]} 53. Qa4+ {[%clk 0:00:03]}  Kd3 {[%clk 0:00:06]} 54. Qd1+ {[%clk 0:00:03]}  Kc4 {[%clk 0:00:06]} 55. Qa4+ {[%clk 0:00:03]}  Kc5 {[%clk 0:00:06]} 56. Qa5+ {[%clk 0:00:04]}  Kd4 {[%clk 0:00:07]} 57. Qb4+ {[%clk 0:00:04]}  Kd3 {[%clk 0:00:07]} 58. Qa3 {[%clk 0:00:03]}  Kd2 {[%clk 0:00:06]} 59. Qb4 {[%clk 0:00:03]}  Kd3 {[%clk 0:00:06]} 60. Qa3 {[%clk 0:00:03]}  e5 {[%clk 0:00:04]} 61. h4 {[%clk 0:00:03]}  Qd4 {[%clk 0:00:04]} 62. h5 {[%clk 0:00:02]}  Qh4+ {[%clk 0:00:04]} 63. Kg1 {[%clk 0:00:02]}  Qe1+ {[%clk 0:00:05]} 64. Kh2 {[%clk 0:00:02]}  Qh4+ {[%clk 0:00:05]} 65. Kg1 {[%clk 0:00:03]}  Qxh5 {[%clk 0:00:05]} 66. Qd6+ {[%clk 0:00:03]}  Ke4 {[%clk 0:00:05]} 67. Qc6+ {[%clk 0:00:04]}  Kd4 {[%clk 0:00:04]} 68. Qd6+ {[%clk 0:00:04]}  Kc4 {[%clk 0:00:04]} 69. Qc6+ {[%clk 0:00:05]}  Kb3 {[%clk 0:00:05]} 70. Qb5+ {[%clk 0:00:05]}  Kc2 {[%clk 0:00:05]} 71. Qa4+ {[%clk 0:00:04]}  Kd2 {[%clk 0:00:06]} 72. Qd7+ {[%clk 0:00:04]}  Ke3 {[%clk 0:00:05]} 73. Qc7 {[%clk 0:00:04]}  Qd1+ {[%clk 0:00:05]} 74. Kh2 {[%clk 0:00:04]}  Qd4 {[%clk 0:00:06]} 75. Kh1 {[%clk 0:00:02]}  Kd2 {[%clk 0:00:06]} 76. Qa5 {[%clk 0:00:01]}  Kd1 {[%clk 0:00:06]} 77. Qa1+ {[%clk 0:00:01]}  Ke2 {[%clk 0:00:06]} 78. Qa5 {[%clk 0:00:01]}  c2 {[%clk 0:00:06]} 79. Qb5+ {[%clk 0:00:02]}  Kd1 {[%clk 0:00:06]} 80. Qb3 {[%clk 0:00:02]}  Kd2 {[%clk 0:00:06]} 81. Qa2 {[%clk 0:00:02]}  Qh4+ {[%clk 0:00:06]} 82. Kg1 {[%clk 0:00:02]}  Qe1+ {[%clk 0:00:06]} 83. Kh2 {[%clk 0:00:02]}  Qe4 {[%clk 0:00:06]} 84. Kg1 {[%clk 0:00:01]}  Kd1 {[%clk 0:00:06]} 85. Qb3 {[%clk 0:00:01]}  Qd4+ {[%clk 0:00:06]} 86. Kh2 {[%clk 0:00:01]}  Kd2 {[%clk 0:00:06]} 87. Qa2 {[%clk 0:00:01]}  Kd1 {[%clk 0:00:06]} 88. Qb3 {[%clk 0:00:01]}  Kd2 {[%clk 0:00:06]} 89. Qa2 {[%clk 0:00:02]}  Qh4+ {[%clk 0:00:06]} 90. Kg1 {[%clk 0:00:02]}  Qf4 {[%clk 0:00:06]} 91. Qb2 {[%clk 0:00:02]}  Kd3 {[%clk 0:00:06]} 92. Qb3+ {[%clk 0:00:02]}  Kd2 {[%clk 0:00:07]} 93. Qb2 {[%clk 0:00:03]}  Kd1 {[%clk 0:00:07]} 94. Qb3 {[%clk 0:00:03]}  Qd4+ {[%clk 0:00:07]} 95. Kh2 {[%clk 0:00:04]} 1/2-1/2


[Site "https://www.chess.com"]

[Event "Titled Tuesday Blitz October 25 Late 2022"]
[White "Ali Abdullahi, Farah"]
[Black "Arbunic Castro, Giovanna"]
[WhiteFideId "16100212"]
[BlackFideId "3400549"]
[WhiteElo "2214"]
[BlackElo "1855"]
[Result "1-0"]
[Round "05"]
[TimeControl "180+1"]
[Date "2022.10.26"]
[WhiteClock "0:00:30"]
[BlackClock "0:00:01"]

1. d4 {[%clk 0:02:59]}  Nf6 {[%clk 0:02:57]} 2. Nf3 {[%clk 0:02:58]}  g6 {[%clk 0:02:57]} 3. c4 {[%clk 0:02:59]}  Bg7 {[%clk 0:02:57]} 4. Nc3 {[%clk 0:03:00]}  O-O {[%clk 0:02:55]} 5. Bg5 {[%clk 0:03:00]}  d6 {[%clk 0:02:51]} 6. Bxf6 {[%clk 0:03:00]}  Bxf6 {[%clk 0:02:49]} 7. e3 {[%clk 0:03:01]}  c5 {[%clk 0:02:46]} 8. d5 {[%clk 0:03:00]}  Qa5 {[%clk 0:02:43]} 9. Qb3 {[%clk 0:02:58]}  Na6 {[%clk 0:02:30]} 10. Bd3 {[%clk 0:02:55]}  Nb4 {[%clk 0:02:25]} 11. Bb1 {[%clk 0:02:47]}  e6 {[%clk 0:02:23]} 12. O-O {[%clk 0:02:46]}  exd5 {[%clk 0:02:20]} 13. cxd5 {[%clk 0:02:45]}  Bg4 {[%clk 0:02:18]} 14. Nd2 {[%clk 0:02:37]}  b5 {[%clk 0:02:09]} 15. h3 {[%clk 0:02:34]}  c4 {[%clk 0:02:07]} 16. Nxc4 {[%clk 0:02:26]}  bxc4 {[%clk 0:02:05]} 17. Qxc4 {[%clk 0:02:26]}  Bd7 {[%clk 0:01:59]} 18. a3 {[%clk 0:02:19]}  Rfc8 {[%clk 0:01:43]} 19. Qxb4 {[%clk 0:02:18]}  Qxb4 {[%clk 0:01:38]} 20. axb4 {[%clk 0:02:18]}  Bxc3 {[%clk 0:01:35]} 21. bxc3 {[%clk 0:02:19]}  Rxc3 {[%clk 0:01:35]} 22. Be4 {[%clk 0:02:10]}  Rc4 {[%clk 0:01:32]} 23. Bf3 {[%clk 0:02:03]}  Rxb4 {[%clk 0:01:31]} 24. Rfc1 {[%clk 0:01:59]}  a5 {[%clk 0:01:25]} 25. Rc7 {[%clk 0:01:57]}  Bf5 {[%clk 0:01:24]} 26. Rc6 {[%clk 0:01:47]}  a4 {[%clk 0:01:23]} 27. Rxd6 {[%clk 0:01:44]}  a3 {[%clk 0:01:22]} 28. e4 {[%clk 0:01:38]}  a2 {[%clk 0:01:19]} 29. Rxa2 {[%clk 0:01:27]}  Rb1+ {[%clk 0:01:08]} 30. Kh2 {[%clk 0:01:25]}  Rxa2 {[%clk 0:01:06]} 31. exf5 {[%clk 0:01:24]}  gxf5 {[%clk 0:01:01]} 32. Rf6 {[%clk 0:01:22]}  Rxf2 {[%clk 0:00:54]} 33. Rxf5 {[%clk 0:01:22]}  Rd1 {[%clk 0:00:51]} 34. Kg3 {[%clk 0:01:21]}  Rff1 {[%clk 0:00:42]} 35. Re5 {[%clk 0:01:15]}  Rd4 {[%clk 0:00:38]} 36. Re8+ {[%clk 0:01:06]}  Kg7 {[%clk 0:00:35]} 37. Rd8 {[%clk 0:01:06]}  Kf6 {[%clk 0:00:30]} 38. d6 {[%clk 0:01:03]}  Ke6 {[%clk 0:00:26]} 39. d7 {[%clk 0:00:56]}  Rxd7 {[%clk 0:00:23]} 40. Rh8 {[%clk 0:00:55]}  f5 {[%clk 0:00:20]} 41. Re8+ {[%clk 0:00:53]}  Kf6 {[%clk 0:00:18]} 42. Rf8+ {[%clk 0:00:47]}  Rf7 {[%clk 0:00:17]} 43. Rb8 {[%clk 0:00:46]}  Rg7+ {[%clk 0:00:16]} 44. Kh2 {[%clk 0:00:41]}  Ra1 {[%clk 0:00:12]} 45. Rb6+ {[%clk 0:00:40]}  Kg5 {[%clk 0:00:11]} 46. Rb5 {[%clk 0:00:37]}  Ra2 {[%clk 0:00:11]} 47. Be4 {[%clk 0:00:34]}  Rf7 {[%clk 0:00:09]} 48. Bd5 {[%clk 0:00:33]}  Rf6 {[%clk 0:00:08]} 49. Bxa2 {[%clk 0:00:32]}  Rd6 {[%clk 0:00:07]} 50. Bb1 {[%clk 0:00:31]}  Rf6 {[%clk 0:00:05]} 51. g4 {[%clk 0:00:31]}  Kf4 {[%clk 0:00:04]} 52. Rxf5+ {[%clk 0:00:30]}  Rxf5 {[%clk 0:00:02]} 53. Bxf5 {[%clk 0:00:31]}  Kg5 {[%clk 0:00:01]} 54. Kg3 {[%clk 0:00:30]}  h5 {[%clk 0:00:01]} 55. h4+ {[%clk 0:00:30]} 1-0


[Site "https://www.chess.com"]

[Event "Titled Tuesday Blitz October 25 Late 2022"]
[White "Andreikin, Dmitry"]
[Black "Howell, David W L"]
[WhiteFideId "4158814"]
[BlackFideId "410608"]
[WhiteElo "2736"]
[BlackElo "2567"]
[Result "1/2-1/2"]
[Round "05"]
[TimeControl "180+1"]
[Date "2022.10.26"]
[WhiteClock "0:01:41"]
[BlackClock "0:00:47"]

1. c4 {[%clk 0:03:00]}  Nf6 {[%clk 0:02:48]} 2. Nc3 {[%clk 0:03:00]}  c5 {[%clk 0:02:44]} 3. Nf3 {[%clk 0:03:00]}  Nc6 {[%clk 0:02:43]} 4. g3 {[%clk 0:02:59]}  d5 {[%clk 0:02:42]} 5. cxd5 {[%clk 0:03:00]}  Nxd5 {[%clk 0:02:43]} 6. Bg2 {[%clk 0:03:00]}  g6 {[%clk 0:02:44]} 7. O-O {[%clk 0:02:57]}  Bg7 {[%clk 0:02:44]} 8. Nxd5 {[%clk 0:02:57]}  Qxd5 {[%clk 0:02:45]} 9. d3 {[%clk 0:02:58]}  O-O {[%clk 0:02:45]} 10. Be3 {[%clk 0:02:58]}  Bd7 {[%clk 0:02:45]} 11. Nd4 {[%clk 0:02:42]}  Qd6 {[%clk 0:02:44]} 12. Nxc6 {[%clk 0:02:40]}  Bxc6 {[%clk 0:02:45]} 13. Bxc6 {[%clk 0:02:39]}  Qxc6 {[%clk 0:02:46]} 14. Rc1 {[%clk 0:02:39]}  Qe6 {[%clk 0:02:46]} 15. Rxc5 {[%clk 0:02:34]}  Qxa2 {[%clk 0:02:43]} 16. Rb5 {[%clk 0:02:26]}  b6 {[%clk 0:02:39]} 17. Qa1 {[%clk 0:02:26]}  Qxa1 {[%clk 0:02:05]} 18. Rxa1 {[%clk 0:02:27]}  Rfc8 {[%clk 0:02:06]} 19. Kg2 {[%clk 0:02:28]}  Kf8 {[%clk 0:01:43]} 20. Kf3 {[%clk 0:02:27]}  Ke8 {[%clk 0:01:43]} 21. Ra4 {[%clk 0:02:23]}  Kd7 {[%clk 0:01:41]} 22. Rb3 {[%clk 0:02:15]}  Kc6 {[%clk 0:01:38]} 23. h4 {[%clk 0:02:10]}  Kb7 {[%clk 0:01:22]} 24. h5 {[%clk 0:02:04]}  Rc2 {[%clk 0:01:22]} 25. Bd4 {[%clk 0:01:57]}  Bxd4 {[%clk 0:01:08]} 26. Rxd4 {[%clk 0:01:57]}  Rac8 {[%clk 0:01:09]} 27. h6 {[%clk 0:01:53]}  Rc1 {[%clk 0:00:59]} 28. g4 {[%clk 0:01:49]}  f6 {[%clk 0:00:50]} 29. Kg2 {[%clk 0:01:44]}  R1c2 {[%clk 0:00:46]} 30. Kf3 {[%clk 0:01:43]}  Rc1 {[%clk 0:00:47]} 31. Kg2 {[%clk 0:01:43]}  R1c2 {[%clk 0:00:47]} 32. Kf3 {[%clk 0:01:41]}  Rc1 {[%clk 0:00:47]} 1/2-1/2


[Site "https://www.chess.com"]

[Event "Titled Tuesday Blitz October 25 Late 2022"]
[White "Ardila, Oscar Humberto"]
[Black "Shapiro, Daniel"]
[WhiteFideId "4404742"]
[BlackFideId "2001780"]
[WhiteElo "1898"]
[BlackElo "2231"]
[Result "0-1"]
[Round "05"]
[TimeControl "180+1"]
[Date "2022.10.26"]
[WhiteClock "0:00:21"]
[BlackClock "0:00:06"]

1. d4 {[%clk 0:02:58]}  Nf6 {[%clk 0:02:59]} 2. c4 {[%clk 0:02:58]}  e6 {[%clk 0:02:59]} 3. Nc3 {[%clk 0:02:58]}  Bb4 {[%clk 0:02:58]} 4. Bd2 {[%clk 0:02:58]}  d5 {[%clk 0:02:55]} 5. Nf3 {[%clk 0:02:58]}  Nbd7 {[%clk 0:02:51]} 6. e3 {[%clk 0:02:58]}  c6 {[%clk 0:02:46]} 7. Be2 {[%clk 0:02:57]}  Bd6 {[%clk 0:02:44]} 8. O-O {[%clk 0:02:57]}  O-O {[%clk 0:02:41]} 9. Rc1 {[%clk 0:02:57]}  Qe7 {[%clk 0:02:38]} 10. Qc2 {[%clk 0:02:52]}  a6 {[%clk 0:02:33]} 11. c5 {[%clk 0:02:49]}  Bc7 {[%clk 0:02:32]} 12. b4 {[%clk 0:02:49]}  e5 {[%clk 0:02:31]} 13. dxe5 {[%clk 0:02:48]}  Nxe5 {[%clk 0:02:30]} 14. Rfd1 {[%clk 0:02:40]}  g6 {[%clk 0:02:14]} 15. Na4 {[%clk 0:02:31]}  Bf5 {[%clk 0:02:08]} 16. Qb2 {[%clk 0:02:27]}  Ne4 {[%clk 0:01:49]} 17. Be1 {[%clk 0:02:02]}  Rae8 {[%clk 0:01:30]} 18. Nd4 {[%clk 0:02:01]}  Bc8 {[%clk 0:01:12]} 19. Nc3 {[%clk 0:02:00]}  f5 {[%clk 0:01:06]} 20. Nxe4 {[%clk 0:01:41]}  fxe4 {[%clk 0:01:05]} 21. Bc3 {[%clk 0:01:32]}  Qh4 {[%clk 0:00:56]} 22. g3 {[%clk 0:01:30]}  Qh6 {[%clk 0:00:51]} 23. Bf1 {[%clk 0:01:17]}  Bg4 {[%clk 0:00:45]} 24. Re1 {[%clk 0:01:17]}  Bf3 {[%clk 0:00:44]} 25. Bg2 {[%clk 0:01:11]}  Ng4 {[%clk 0:00:39]} 26. h3 {[%clk 0:00:40]}  Bxg2 {[%clk 0:00:34]} 27. Kxg2 {[%clk 0:00:37]}  Rxf2+ {[%clk 0:00:31]} 28. Qxf2 {[%clk 0:00:38]}  Nxf2 {[%clk 0:00:31]} 29. Kxf2 {[%clk 0:00:38]}  Qxh3 {[%clk 0:00:25]} 30. Ke2 {[%clk 0:00:38]}  Qg2+ {[%clk 0:00:22]} 31. Kd1 {[%clk 0:00:38]}  Bxg3 {[%clk 0:00:20]} 32. Re2 {[%clk 0:00:38]}  Qf1+ {[%clk 0:00:16]} 33. Kc2 {[%clk 0:00:38]}  Qf7 {[%clk 0:00:16]} 34. Rg1 {[%clk 0:00:37]}  Be5 {[%clk 0:00:16]} 35. Reg2 {[%clk 0:00:35]}  a5 {[%clk 0:00:16]} 36. b5 {[%clk 0:00:34]}  cxb5 {[%clk 0:00:15]} 37. Nxb5 {[%clk 0:00:34]}  Bxc3 {[%clk 0:00:13]} 38. Kxc3 {[%clk 0:00:33]}  Rc8 {[%clk 0:00:12]} 39. Nd4 {[%clk 0:00:30]}  Rxc5+ {[%clk 0:00:12]} 40. Kd2 {[%clk 0:00:31]}  Rc4 {[%clk 0:00:11]} 41. Ke2 {[%clk 0:00:28]}  Ra4 {[%clk 0:00:11]} 42. Ke1 {[%clk 0:00:27]}  Ra3 {[%clk 0:00:10]} 43. Re2 {[%clk 0:00:26]}  Qd7 {[%clk 0:00:10]} 44. Kf2 {[%clk 0:00:24]}  Qf7+ {[%clk 0:00:09]} 45. Ke1 {[%clk 0:00:24]}  Qd7 {[%clk 0:00:09]} 46. Kf2 {[%clk 0:00:23]}  Qh3 {[%clk 0:00:09]} 47. Rg3 {[%clk 0:00:23]}  Qh2+ {[%clk 0:00:08]} 48. Rg2 {[%clk 0:00:23]}  Qd6 {[%clk 0:00:08]} 49. Rg5 {[%clk 0:00:19]}  Qd7 {[%clk 0:00:06]} 50. Kg3 {[%clk 0:00:15]}  b5 {[%clk 0:00:06]} 51. Kf4 {[%clk 0:00:15]}  Qf7+ {[%clk 0:00:05]} 52. Kg3 {[%clk 0:00:13]}  b4 {[%clk 0:00:04]} 53. Re5 {[%clk 0:00:11]}  Qf6 {[%clk 0:00:03]} 54. Re8+ {[%clk 0:00:09]}  Kg7 {[%clk 0:00:03]} 55. Ra8 {[%clk 0:00:09]}  Qxd4 {[%clk 0:00:02]} 56. Kf4 {[%clk 0:00:07]}  Qf6+ {[%clk 0:00:01]} 57. Kg4 {[%clk 0:00:08]}  Qf3+ {[%clk 0:00:01]} 58. Kg5 {[%clk 0:00:08]}  Qxe2 {[%clk 0:00:02]} 59. Ra7+ {[%clk 0:00:08]}  Kf8 {[%clk 0:00:02]} 60. Ra8+ {[%clk 0:00:09]}  Ke7 {[%clk 0:00:03]} 61. Ra7+ {[%clk 0:00:10]}  Kd6 {[%clk 0:00:03]} 62. Ra6+ {[%clk 0:00:11]}  Ke5 {[%clk 0:00:03]} 63. Ra8 {[%clk 0:00:11]}  Qg2+ {[%clk 0:00:03]} 64. Kh6 {[%clk 0:00:11]}  Qh3+ {[%clk 0:00:03]} 65. Kg7 {[%clk 0:00:12]}  Qxe3 {[%clk 0:00:03]} 66. Rf8 {[%clk 0:00:12]}  d4 {[%clk 0:00:03]} 67. Re8+ {[%clk 0:00:13]}  Kf4 {[%clk 0:00:03]} 68. Rf8+ {[%clk 0:00:14]}  Kg5 {[%clk 0:00:03]} 69. Re8 {[%clk 0:00:15]}  d3 {[%clk 0:00:04]} 70. Rf8 {[%clk 0:00:16]}  d2 {[%clk 0:00:04]} 71. Re8 {[%clk 0:00:16]}  d1=Q {[%clk 0:00:04]} 72. Re5+ {[%clk 0:00:17]}  Kf4 {[%clk 0:00:03]} 73. Re7 {[%clk 0:00:17]}  Qdd4+ {[%clk 0:00:03]} 74. Kf8 {[%clk 0:00:17]}  Qd8+ {[%clk 0:00:03]} 75. Kf7 {[%clk 0:00:17]}  Qxe7+ {[%clk 0:00:03]} 76. Kxe7 {[%clk 0:00:17]}  Qh3 {[%clk 0:00:03]} 77. Kf7 {[%clk 0:00:18]}  Qf5+ {[%clk 0:00:04]} 78. Kg7 {[%clk 0:00:19]}  e3 {[%clk 0:00:04]} 79. Kh8 {[%clk 0:00:20]}  e2 {[%clk 0:00:05]} 80. Kg7 {[%clk 0:00:21]}  e1=Q {[%clk 0:00:06]} 0-1


[Site "https://www.chess.com"]